[Event "DVM U10 2024"]
[Site "Duesseldorf"]
[Date "2024.12.28"]
[Round "4"]
[White "Tolle, Jonathan"]
[Black "Graf, Tom"]
[Result "0-1"]
[ECO "C78"]
[WhiteElo "1149"]
[BlackElo "1456"]
[Annotator "NA"]
[PlyCount "74"]
[EventDate "2024.12.23"]
[EventType "team-tourn"]
[EventRounds "7"]
[EventCountry "GER"]
[SourceTitle "playchess.com"]
[Source "ChessBase"]
[SourceQuality "1"]
[TimeControl "3300+5"]

1. e4 {[%emt 0:00:00]} e5 {[%emt 0:00:06]} 2. Nf3 {[%emt 0:00:05]} Nc6 {[%emt 0:00:09]} 3. Bb5 {[%emt 0:00:02]} Bc5 {[%emt 0:00:18]} 4. O-O {[%emt 0:00:06]} d6 {[%emt 0:00:11]} 5. h3 {[%emt 0:00:04]} Nf6 {[%emt 0:03:13]} 6. d3 {[%emt 0:00:07]} a6 {[%emt 0:00:21]} 7. Ba4 {[%emt 0:00:17]} b5 {[%emt 0:00:45]} 8. Bb3 {[%emt 0:01:50]} O-O {[%emt 0:00:39]} 9. Bg5 {[%emt 0:00:03]} Be6 {[%emt 0:00:19]} 10. Nc3 {[%emt 0:02:27]} h6 {[%emt 0:06:11]} 11. Bh4 {[%emt 0:00:07]} Bd4 {[%emt 0:02:52]} 12. Nxd4 {[%emt 0:01:39]} Nxd4 {[%emt 0:01:34]} 13. Bd5 {[%emt 0:00:32]} c6 {[%emt 0:00:54]} 14. Bb3 {[%emt 0:06:31]} a5 {[%emt 0:02:55]} 15. Bxe6 {[%emt 0:00:31]} fxe6 {[%emt 0:00:44]} 16. Ne2 {[%emt 0:00:13]} Nxe2+ {[%emt 0:01:04]} 17. Qxe2 {[%emt 0:00:06]} Qe8 {[%emt 0:00:45]} 18. c3 {[%emt 0:00:36]} Ra7 {[%emt 0:01:29]} 19. f3 {[%emt 0:01:51]} Nh5 {[%emt 0:00:39]} 20. Qe3 {[%emt 0:02:28]} Raf7 {[%emt 0:00:20]} 21. Kh2 {[%emt 0:00:35]} Nf4 {[%emt 0:04:55]} 22. Bg3 {[%emt 0:00:48]} Qe7 {[%emt 0:01:21]} 23. Rad1 {[%emt 0:04:35]} Rf6 {[%emt 0:01:36]} 24. Qb6 {[%emt 0:01:06]} Rg6 {[%emt 0:01:02]} 25. Rf2 {[%emt 0:03:27]} Nh5 {[%emt 0:01:09]} 26. Bxe5 {[%emt 0:01:31]} dxe5 {[%emt 0:00:36]} 27. Qxc6 {[%emt 0:00:48]} Qg5 {[%emt 0:00:59]} 28. g4 {[%emt 0:02:42]} Qf4+ {[%emt 0:02:46]} 29. Kg1 {[%emt 0:03:09]} Qg3+ {[%emt 0:00:56]} 30. Kf1 {[%emt 0:00:15]} Rxf3 {[%emt 0:01:58]} 31. Qe8+ {[%emt 0:02:51]} Kh7 {[%emt 0:00:12]} 32. Rxf3 {[%emt 0:01:59]} Qxf3+ {[%emt 0:00:14]} 33. Ke1 {[%emt 0:00:12]} Qe3+ {[%emt 0:00:09]} 34. Kf1 {[%emt 0:00:44]} Rf6+ {[%emt 0:00:08]} 35. Kg2 {[%emt 0:00:37]} Rf2+ {[%emt 0:00:36]} 36. Kh1 {[%emt 0:01:15]} Ng3+ {[%emt 0:00:46]} 37. Kg1 {[%emt 0:00:13]} Rd2# {[%emt 0:00:30]} 0-1

[Event "DVM U10 2024"]
[Site "Duesseldorf"]
[Date "2024.12.28"]
[Round "4"]
[White "Leppin, Mattis"]
[Black "Breaz, Albert"]
[Result "0-1"]
[ECO "D85"]
[WhiteElo "1138"]
[BlackElo "1494"]
[Annotator "NA"]
[PlyCount "38"]
[EventDate "2024.12.23"]
[EventType "team-tourn"]
[EventRounds "7"]
[EventCountry "GER"]
[SourceTitle "playchess.com"]
[Source "ChessBase"]
[SourceQuality "1"]
[TimeControl "3300+5"]

1. d4 {[%emt 0:00:01]} Nf6 {[%emt 0:00:05]} 2. c4 {[%emt 0:00:06]} g6 {[%emt 0:00:07]} 3. Nf3 {[%emt 0:00:05]} d5 {[%emt 0:00:29]} 4. Nc3 {[%emt 0:00:26]} Bg7 {[%emt 0:01:09]} 5. cxd5 {[%emt 0:00:20]} Nxd5 {[%emt 0:00:07]} 6. e4 {[%emt 0:00:39]} Nxc3 {[%emt 0:00:14]} 7. bxc3 {[%emt 0:00:06]} c5 {[%emt 0:00:16]} 8. Be3 {[%emt 0:00:52]} Bg4 {[%emt 0:01:33]} 9. Be2 {[%emt 0:06:16]} Nc6 {[%emt 0:02:44]} 10. O-O {[%emt 0:07:58]} O-O {[%emt 0:02:39]} 11. d5 {[%emt 0:02:13]} Ne5 {[%emt 0:03:18]} 12. Nxe5 {[%emt 0:00:37]} Bxe2 {[%emt 0:03:28]} 13. Qxe2 {[%emt 0:00:10]} Bxe5 {[%emt 0:00:12]} 14. Bxc5 {[%emt 0:00:23]} Qc7 {[%emt 0:00:50]} 15. Bd4 {[%emt 0:00:21]} Bxh2+ {[%emt 0:00:08]} 16. Kh1 {[%emt 0:00:13]} Be5 {[%emt 0:00:55]} 17. Be3 {[%emt 0:05:02]} Qd8 {[%emt 0:01:27]} 18. Rac1 {[%emt 0:00:27]} e6 {[%emt 0:00:37]} 19. c4 {[%emt 0:02:57]} Qh4+ {[%emt 0:00:06]} 0-1

[Event "DVM U10 2024"]
[Site "Duesseldorf"]
[Date "2024.12.28"]
[Round "4"]
[White "Breaz, Arthur"]
[Black "Mettenbrink, Tammo"]
[Result "0-1"]
[ECO "C54"]
[WhiteElo "1123"]
[BlackElo "1029"]
[Annotator "NA"]
[PlyCount "52"]
[EventDate "2024.12.23"]
[EventType "team-tourn"]
[EventRounds "7"]
[EventCountry "GER"]
[SourceTitle "playchess.com"]
[Source "ChessBase"]
[SourceQuality "1"]
[TimeControl "3300+5"]

1. e4 {[%emt 0:00:04]} e5 {[%emt 0:00:07]} 2. Nf3 {[%emt 0:00:07]} Nc6 {[%emt 0:00:14]} 3. Bc4 {[%emt 0:00:14]} Bc5 {[%emt 0:00:20]} 4. c3 {[%emt 0:00:05]} Nf6 {[%emt 0:00:23]} 5. d4 {[%emt 0:00:22]} exd4 {[%emt 0:00:41]} 6. cxd4 {[%emt 0:00:07]} Qe7 {[%emt 0:00:40]} 7. dxc5 {[%emt 0:00:47]} O-O {[%emt 0:01:44]} 8. O-O {[%emt 0:00:17]} Qxe4 {[%emt 0:00:33]} 9. Nbd2 {[%emt 0:00:14]} Qe7 {[%emt 0:00:21]} 10. Nb3 {[%emt 0:00:45]} b6 {[%emt 0:01:27]} 11. Be3 {[%emt 0:02:25]} Bb7 {[%emt 0:00:46]} 12. Re1 {[%emt 0:00:29]} Qe4 {[%emt 0:00:34]} 13. Bd4 {[%emt 0:02:57]} Qg4 {[%emt 0:00:59]} 14. h3 {[%emt 0:02:21]} Qh5 {[%emt 0:01:13]} 15. Bc3 {[%emt 0:05:05]} Rfe8 {[%emt 0:00:48]} 16. Bxf6 {[%emt 0:04:23]} gxf6 {[%emt 0:00:21]} 17. Qxd7 {[%emt 0:00:57]} Ne5 {[%emt 0:02:42]} 18. Nxe5 {[%emt 0:01:36]} fxe5 {[%emt 0:00:20]} 19. Qg4+ {[%emt 0:00:28]} Qxg4 {[%emt 0:00:27]} 20. hxg4 {[%emt 0:00:56]} Kg7 {[%emt 0:00:46]} 21. cxb6 {[%emt 0:01:37]} cxb6 {[%emt 0:00:17]} 22. Bb5 {[%emt 0:00:27]} Re6 {[%emt 0:00:37]} 23. f4 {[%emt 0:01:31]} Rg6 {[%emt 0:00:35]} 24. fxe5 {[%emt 0:03:41]} Rxg4 {[%emt 0:00:20]} 25. Re2 {[%emt 0:00:07]} Rg8 {[%emt 0:01:16]} 26. Rd1 {[%emt 0:01:41]} Bf3 {[%emt 0:01:24]} 0-1

[Event "DVM U10 2024"]
[Site "Duesseldorf"]
[Date "2024.12.28"]
[Round "4"]
[White "Dres, Friedrich"]
[Black "Seitov, Adela"]
[Result "1-0"]
[ECO "C57"]
[WhiteElo "1123"]
[BlackElo "911"]
[Annotator "NA"]
[PlyCount "68"]
[EventDate "2024.12.23"]
[EventType "team-tourn"]
[EventRounds "7"]
[EventCountry "GER"]
[SourceTitle "playchess.com"]
[Source "ChessBase"]
[SourceQuality "1"]
[TimeControl "3300+5"]

1. e4 {[%emt 0:00:01]} e5 {[%emt 0:00:03]} 2. Nf3 {[%emt 0:00:05]} Nc6 {[%emt 0:00:06]} 3. Bc4 {[%emt 0:00:06]} Nf6 {[%emt 0:00:07]} 4. Ng5 {[%emt 0:00:05]} Na5 {[%emt 0:00:17]} 5. Bxf7+ {[%emt 0:00:29]} Ke7 {[%emt 0:00:20]} 6. Bb3 {[%emt 0:00:22]} Nxb3 {[%emt 0:00:34]} 7. cxb3 {[%emt 0:00:14]} Ke8 {[%emt 0:00:24]} 8. O-O {[%emt 0:00:09]} Bc5 {[%emt 0:00:30]} 9. Nc3 {[%emt 0:00:09]} d6 {[%emt 0:00:26]} 10. b4 {[%emt 0:00:39]} Bxb4 {[%emt 0:00:11]} 11. Qb3 {[%emt 0:00:06]} Qe7 {[%emt 0:00:52]} 12. Qxb4 {[%emt 0:00:14]} a5 {[%emt 0:00:41]} 13. Qb3 {[%emt 0:00:31]} a4 {[%emt 0:01:15]} 14. Nxa4 {[%emt 0:00:14]} h6 {[%emt 0:00:23]} 15. Nf3 {[%emt 0:00:11]} Nxe4 {[%emt 0:00:29]} 16. d4 {[%emt 0:00:23]} Qf6 {[%emt 0:01:43]} 17. Nc3 {[%emt 0:00:31]} Nxc3 {[%emt 0:01:08]} 18. Qxc3 {[%emt 0:01:19]} Qg6 {[%emt 0:00:00]} 19. dxe5 {[%emt 0:00:10]} Bh3 {[%emt 0:00:00]} 20. Nh4 {[%emt 0:00:09]} Qg4 {[%emt 0:01:26]} 21. Qxh3 {[%emt 0:01:00]} Qxh3 {[%emt 0:00:29]} 22. gxh3 {[%emt 0:00:02]} d5 {[%emt 0:00:23]} 23. Re1 {[%emt 0:00:14]} Kd7 {[%emt 0:00:06]} 24. Bf4 {[%emt 0:00:19]} g5 {[%emt 0:00:11]} 25. Ng6 {[%emt 0:00:14]} gxf4 {[%emt 0:00:46]} 26. Nxh8 {[%emt 0:00:11]} Rxh8 {[%emt 0:00:03]} 27. Rad1 {[%emt 0:00:11]} Rg8+ {[%emt 0:00:04]} 28. Kh1 {[%emt 0:00:02]} Kc6 {[%emt 0:00:00]} 29. f3 {[%emt 0:00:24]} Rg2 {[%emt 0:01:36]} 30. Rf1 {[%emt 0:00:05]} Rg7 {[%emt 0:00:38]} 31. Rg1 {[%emt 0:00:10]} Re7 {[%emt 0:00:54]} 32. h4 {[%emt 0:07:39]} h5 {[%emt 0:01:27]} 33. Rg8 {[%emt 0:00:00]} Kb6 {[%emt 0:00:45]} 34. Kg1 {[%emt 0:00:00]} Ka7 {[%emt 0:00:00]} 1-0

[Event "DVM U10 2024"]
[Site "Duesseldorf"]
[Date "2024.12.28"]
[Round "4"]
[White "Goyush, Shams"]
[Black "Pawlus, Daniel"]
[Result "0-1"]
[ECO "B22"]
[WhiteElo "1122"]
[BlackElo "1521"]
[Annotator "NA"]
[PlyCount "130"]
[EventDate "2024.12.23"]
[EventType "team-tourn"]
[EventRounds "7"]
[EventCountry "GER"]
[SourceTitle "playchess.com"]
[Source "ChessBase"]
[SourceQuality "1"]
[TimeControl "3300+5"]

1. e4 {[%emt 0:00:02]} c5 {[%emt 0:00:06]} 2. c3 {[%emt 0:00:07]} Nf6 {[%emt 0:00:07]} 3. e5 {[%emt 0:00:08]} Nd5 {[%emt 0:00:08]} 4. d4 {[%emt 0:00:16]} cxd4 {[%emt 0:00:09]} 5. cxd4 {[%emt 0:00:07]} e6 {[%emt 0:00:12]} 6. Nf3 {[%emt 0:00:30]} d6 {[%emt 0:00:38]} 7. a3 {[%emt 0:10:25]} Bd7 {[%emt 0:03:03]} 8. Bd3 {[%emt 0:03:24]} Be7 {[%emt 0:04:56]} 9. O-O {[%emt 0:00:16]} O-O {[%emt 0:01:09]} 10. Qe2 {[%emt 0:00:57]} Bc6 {[%emt 0:04:00]} 11. Nc3 {[%emt 0:03:40]} Nd7 {[%emt 0:03:01]} 12. Bc2 {[%emt 0:03:10]} N7b6 {[%emt 0:05:15]} 13. Qd3 {[%emt 0:01:13]} f5 {[%emt 0:01:29]} 14. exf6 {[%emt 0:02:30]} Nxf6 {[%emt 0:00:14]} 15. Bg5 {[%emt 0:00:35]} g6 {[%emt 0:03:03]} 16. Nh4 {[%emt 0:04:49]} Be8 {[%emt 0:05:00]} 17. Rfe1 {[%emt 0:01:59]} Bf7 {[%emt 0:01:34]} 18. Re2 {[%emt 0:03:40]} e5 {[%emt 0:02:10]} 19. Rae1 {[%emt 0:01:59]} Bc4 {[%emt 0:00:47]} 20. Qe3 {[%emt 0:03:58]} Ng4 {[%emt 0:01:09]} 21. Qe4 {[%emt 0:02:49]} Bxe2 {[%emt 0:01:24]} 22. Nxg6 {[%emt 0:03:41]} Bxg5 {[%emt 0:01:35]} 23. Nxf8 {[%emt 0:00:46]} Kxf8 {[%emt 0:00:24]} 24. Rxe2 {[%emt 0:02:01]} Nf6 {[%emt 0:02:10]} 25. Qf5 {[%emt 0:01:39]} h6 {[%emt 0:01:07]} 26. Ne4 {[%emt 0:00:42]} Qd7 {[%emt 0:02:06]} 27. Qg6 {[%emt 0:01:37]} Qg7 {[%emt 0:00:55]} 28. Qf5 {[%emt 0:00:03]} Kf7 {[%emt 0:00:39]} 29. Bb3+ {[%emt 0:00:10]} Kf8 {[%emt 0:01:43]} 30. Nxd6 {[%emt 0:00:07]} Qc7 {[%emt 0:01:12]} 31. g3 {[%emt 0:00:08]} Qxd6 {[%emt 0:00:33]} 32. Qg6 {[%emt 0:00:04]} Qe7 {[%emt 0:00:51]} 33. Rxe5 {[%emt 0:00:03]} Qg7 {[%emt 0:00:23]} 34. Qf5 {[%emt 0:00:05]} Re8 {[%emt 0:00:38]} 35. Rxe8+ {[%emt 0:00:08]} Kxe8 {[%emt 0:00:06]} 36. Qb5+ {[%emt 0:00:06]} Qd7 {[%emt 0:00:44]} 37. Qe5+ {[%emt 0:00:02]} Qe7 {[%emt 0:00:32]} 38. Qb5+ {[%emt 0:00:07]} Kf8 {[%emt 0:00:04]} 39. Qf5 {[%emt 0:00:04]} Qe1+ {[%emt 0:00:15]} 40. Kg2 {[%emt 0:00:02]} Qe4+ {[%emt 0:00:02]} 41. Qxe4 {[%emt 0:00:02]} Nxe4 {[%emt 0:00:01]} 42. Kf3 {[%emt 0:00:02]} Nd2+ {[%emt 0:00:03]} 43. Kg4 {[%emt 0:00:02]} Nxb3 {[%emt 0:00:02]} 44. Kf5 {[%emt 0:00:01]} Nxd4+ {[%emt 0:00:07]} 45. Ke4 {[%emt 0:00:04]} Nc6 {[%emt 0:00:11]} 46. Kf5 {[%emt 0:00:06]} Nc4 {[%emt 0:00:06]} 47. f4 {[%emt 0:00:03]} Be7 {[%emt 0:00:10]} 48. g4 {[%emt 0:00:03]} Nxb2 {[%emt 0:00:02]} 49. h4 {[%emt 0:00:03]} Bxa3 {[%emt 0:00:06]} 50. g5 {[%emt 0:00:01]} hxg5 {[%emt 0:00:01]} 51. fxg5 {[%emt 0:00:02]} Be7 {[%emt 0:00:06]} 52. Kg6 {[%emt 0:00:01]} Bxg5 {[%emt 0:00:08]} 53. Kxg5 {[%emt 0:00:03]} Kg7 {[%emt 0:00:01]} 54. h5 {[%emt 0:00:01]} a5 {[%emt 0:00:01]} 55. h6+ {[%emt 0:00:01]} Kh7 {[%emt 0:00:01]} 56. Kf5 {[%emt 0:00:05]} a4 {[%emt 0:00:05]} 57. Ke4 {[%emt 0:00:01]} a3 {[%emt 0:00:01]} 58. Kd5 {[%emt 0:00:03]} a2 {[%emt 0:00:05]} 59. Kd6 {[%emt 0:00:02]} a1=Q {[%emt 0:00:11]} 60. Kc7 {[%emt 0:00:02]} Kxh6 {[%emt 0:00:04]} 61. Kc8 {[%emt 0:00:04]} Qa8+ {[%emt 0:00:03]} 62. Kc7 {[%emt 0:00:01]} Qb8+ {[%emt 0:00:01]} 63. Kd7 {[%emt 0:00:02]} Qd8+ {[%emt 0:00:04]} 64. Ke6 {[%emt 0:00:01]} Qe7+ {[%emt 0:00:14]} 65. Kd5 {[%emt 0:00:02]} Qe5# {[%emt 0:00:04]} 0-1

[Event "DVM U10 2024"]
[Site "Duesseldorf"]
[Date "2024.12.28"]
[Round "4"]
[White "Qu, Mengdi"]
[Black "Obermeier, Vitus"]
[Result "0-1"]
[ECO "D50"]
[WhiteElo "1111"]
[BlackElo "982"]
[Annotator "NA"]
[PlyCount "90"]
[EventDate "2024.12.23"]
[EventType "team-tourn"]
[EventRounds "7"]
[EventCountry "GER"]
[SourceTitle "playchess.com"]
[Source "ChessBase"]
[SourceQuality "1"]
[TimeControl "3300+5"]

1. d4 {[%emt 0:00:02]} d5 {[%emt 0:00:05]} 2. c4 {[%emt 0:00:08]} e6 {[%emt 0:00:06]} 3. Nc3 {[%emt 0:00:07]} Nf6 {[%emt 0:00:29]} 4. Bg5 {[%emt 0:00:18]} c5 {[%emt 0:00:21]} 5. cxd5 {[%emt 0:00:41]} cxd4 {[%emt 0:00:19]} 6. Qxd4 {[%emt 0:00:19]} Nc6 {[%emt 0:00:18]} 7. Qa4 {[%emt 0:00:46]} exd5 {[%emt 0:00:36]} 8. Rd1 {[%emt 0:00:34]} Be6 {[%emt 0:01:27]} 9. e4 {[%emt 0:00:12]} h6 {[%emt 0:01:32]} 10. exd5 {[%emt 0:00:55]} hxg5 {[%emt 0:00:47]} 11. dxc6 {[%emt 0:00:13]} Qe7 {[%emt 0:00:54]} 12. cxb7+ {[%emt 0:00:44]} Bd7+ {[%emt 0:00:55]} 13. Be2 {[%emt 0:00:27]} Rb8 {[%emt 0:02:31]} 14. Qxa7 {[%emt 0:00:17]} Qe5 {[%emt 0:00:31]} 15. Nf3 {[%emt 0:01:51]} Qc7 {[%emt 0:00:45]} 16. Ba6 {[%emt 0:01:17]} Bc5 {[%emt 0:00:25]} 17. Qa8 {[%emt 0:00:38]} O-O {[%emt 0:00:44]} 18. Nb5 {[%emt 0:01:45]} Bxb5 {[%emt 0:00:19]} 19. Bxb5 {[%emt 0:00:16]} Rxa8 {[%emt 0:00:22]} 20. bxa8=Q {[%emt 0:00:13]} Rxa8 {[%emt 0:00:22]} 21. Rc1 {[%emt 0:00:11]} Qa5+ {[%emt 0:00:24]} 22. Nd2 {[%emt 0:00:17]} Qxb5 {[%emt 0:00:32]} 23. a3 {[%emt 0:01:47]} Qxb2 {[%emt 0:01:07]} 24. O-O {[%emt 0:00:59]} Bxa3 {[%emt 0:01:38]} 25. Nc4 {[%emt 0:00:00]} Qb3 {[%emt 0:00:28]} 26. Nd2 {[%emt 0:00:00]} Qb8 {[%emt 0:00:34]} 27. Rb1 {[%emt 0:00:33]} Qd6 {[%emt 0:00:17]} 28. Nc4 {[%emt 0:00:14]} Qc7 {[%emt 0:00:22]} 29. Nd2 {[%emt 0:01:05]} Ng4 {[%emt 0:00:40]} 30. Nf3 {[%emt 0:00:00]} f5 {[%emt 0:00:54]} 31. h3 {[%emt 0:00:29]} Ne5 {[%emt 0:00:11]} 32. Nxg5 {[%emt 0:00:15]} Nc4 {[%emt 0:00:48]} 33. Nf3 {[%emt 0:00:35]} g5 {[%emt 0:00:32]} 34. Rfd1 {[%emt 0:00:35]} g4 {[%emt 0:00:31]} 35. hxg4 {[%emt 0:00:05]} fxg4 {[%emt 0:00:11]} 36. Nh2 {[%emt 0:00:09]} g3 {[%emt 0:01:05]} 37. Ng4 {[%emt 0:00:19]} gxf2+ {[%emt 0:01:04]} 38. Kxf2 {[%emt 0:00:18]} Qf4+ {[%emt 0:00:24]} 39. Kg1 {[%emt 0:01:11]} Qxg4 {[%emt 0:00:21]} 40. Rb3 {[%emt 0:00:13]} Bc5+ {[%emt 0:00:37]} 41. Kh2 {[%emt 0:00:53]} Qxd1 {[%emt 0:00:15]} 42. Rg3+ {[%emt 0:00:16]} Kf7 {[%emt 0:00:30]} 43. Rf3+ {[%emt 0:01:52]} Ke6 {[%emt 0:00:12]} 44. g3 {[%emt 0:00:13]} Qxf3 {[%emt 0:00:09]} 45. Kh3 {[%emt 0:00:12]} Rh8# {[%emt 0:00:12]} 0-1

[Event "DVM U10 2024"]
[Site "Duesseldorf"]
[Date "2024.12.28"]
[Round "4"]
[White "Luible, Sebastian"]
[Black "Karabetyan, Levon"]
[Result "1-0"]
[ECO "D05"]
[WhiteElo "1104"]
[BlackElo "1230"]
[Annotator "NA"]
[PlyCount "115"]
[EventDate "2024.12.23"]
[EventType "team-tourn"]
[EventRounds "7"]
[EventCountry "GER"]
[SourceTitle "playchess.com"]
[Source "ChessBase"]
[SourceQuality "1"]
[TimeControl "3300+5"]

1. d4 {[%emt 0:00:03]} d5 {[%emt 0:00:05]} 2. Nf3 {[%emt 0:00:06]} c5 {[%emt 0:00:08]} 3. e3 {[%emt 0:00:06]} Nf6 {[%emt 0:00:18]} 4. c3 {[%emt 0:00:46]} e6 {[%emt 0:00:26]} 5. Bd3 {[%emt 0:00:05]} Nbd7 {[%emt 0:00:36]} 6. Nbd2 {[%emt 0:00:15]} b6 {[%emt 0:00:25]} 7. O-O {[%emt 0:00:51]} Bb7 {[%emt 0:00:06]} 8. Qe2 {[%emt 0:02:14]} Ne4 {[%emt 0:00:23]} 9. Bc2 {[%emt 0:01:21]} Be7 {[%emt 0:01:34]} 10. Re1 {[%emt 0:03:19]} O-O {[%emt 0:01:57]} 11. c4 {[%emt 0:04:33]} Ndf6 {[%emt 0:03:03]} 12. Nxe4 {[%emt 0:01:33]} Nxe4 {[%emt 0:00:43]} 13. Nd2 {[%emt 0:00:47]} Nd6 {[%emt 0:12:28]} 14. Qd3 {[%emt 0:02:47]} Nf5 {[%emt 0:01:44]} 15. cxd5 {[%emt 0:02:45]} Qxd5 {[%emt 0:00:48]} 16. e4 {[%emt 0:00:23]} Qc6 {[%emt 0:00:40]} 17. d5 {[%emt 0:01:01]} exd5 {[%emt 0:09:49]} 18. exf5 {[%emt 0:00:20]} Bf6 {[%emt 0:01:22]} 19. Bd1 {[%emt 0:06:30]} Rfe8 {[%emt 0:02:30]} 20. Rxe8+ {[%emt 0:01:55]} Rxe8 {[%emt 0:00:17]} 21. Be2 {[%emt 0:01:48]} d4 {[%emt 0:02:16]} 22. Bf3 {[%emt 0:01:54]} Qc8 {[%emt 0:03:00]} 23. Bxb7 {[%emt 0:00:23]} Qxb7 {[%emt 0:00:24]} 24. Nf3 {[%emt 0:00:14]} Qd5 {[%emt 0:01:52]} 25. b3 {[%emt 0:02:38]} Qe4 {[%emt 0:02:30]} 26. Qxe4 {[%emt 0:00:21]} Rxe4 {[%emt 0:00:10]} 27. Bd2 {[%emt 0:00:11]} h6 {[%emt 0:00:30]} 28. Re1 {[%emt 0:00:40]} Rxe1+ {[%emt 0:00:08]} 29. Nxe1 {[%emt 0:00:24]} Kf8 {[%emt 0:00:18]} 30. Kf1 {[%emt 0:00:06]} Ke7 {[%emt 0:00:10]} 31. Ke2 {[%emt 0:00:05]} Kd6 {[%emt 0:00:21]} 32. Bf4+ {[%emt 0:00:47]} Be5 {[%emt 0:00:28]} 33. Bxe5+ {[%emt 0:00:14]} Kxe5 {[%emt 0:00:11]} 34. Kd3 {[%emt 0:00:03]} Kxf5 {[%emt 0:00:21]} 35. Nc2 {[%emt 0:00:30]} g5 {[%emt 0:00:19]} 36. Na3 {[%emt 0:00:13]} h5 {[%emt 0:00:21]} 37. Nb5 {[%emt 0:00:06]} a6 {[%emt 0:00:11]} 38. Nd6+ {[%emt 0:00:10]} Ke6 {[%emt 0:00:19]} 39. Ne4 {[%emt 0:01:19]} Kf5 {[%emt 0:00:09]} 40. Ng3+ {[%emt 0:00:28]} Kg6 {[%emt 0:00:01]} 41. h3 {[%emt 0:00:36]} h4 {[%emt 0:00:08]} 42. Ne4 {[%emt 0:00:24]} f5 {[%emt 0:00:24]} 43. Nd6 {[%emt 0:00:28]} f4 {[%emt 0:00:17]} 44. Nc4 {[%emt 0:00:35]} b5 {[%emt 0:00:17]} 45. Ne5+ {[%emt 0:01:38]} Kf5 {[%emt 0:00:06]} 46. Nd7 {[%emt 0:00:43]} g4 {[%emt 0:00:09]} 47. f3 {[%emt 0:01:37]} gxf3 {[%emt 0:00:38]} 48. gxf3 {[%emt 0:00:11]} a5 {[%emt 0:00:10]} 49. Nxc5 {[%emt 0:00:08]} Ke5 {[%emt 0:00:08]} 50. b4 {[%emt 0:01:49]} axb4 {[%emt 0:00:18]} 51. Nb3 {[%emt 0:00:10]} Kd5 {[%emt 0:00:09]} 52. Nxd4 {[%emt 0:00:10]} Kc5 {[%emt 0:00:06]} 53. Nb3+ {[%emt 0:00:17]} Kd5 {[%emt 0:00:09]} 54. Nd4 {[%emt 0:00:33]} Kc5 {[%emt 0:00:03]} 55. Ne6+ {[%emt 0:00:10]} Kb6 {[%emt 0:00:17]} 56. Nxf4 {[%emt 0:00:06]} Ka5 57. Kc2 {[%emt 0:00:19]} Ka4 {[%emt 0:00:32]} 58. Kb2 {[%emt 0:00:00]} 1-0

[Event "DVM U10 2024"]
[Site "Duesseldorf"]
[Date "2024.12.28"]
[Round "4"]
[White "Haberger, Nino"]
[Black "Balla, Virinchi"]
[Result "1/2-1/2"]
[ECO "B30"]
[WhiteElo "1098"]
[BlackElo "1123"]
[Annotator "NA"]
[PlyCount "81"]
[EventDate "2024.12.23"]
[EventType "team-tourn"]
[EventRounds "7"]
[EventCountry "GER"]
[SourceTitle "playchess.com"]
[Source "ChessBase"]
[SourceQuality "1"]
[TimeControl "3300+5"]

1. e4 {[%emt 0:00:02]} c5 {[%emt 0:00:09]} 2. Bc4 {[%emt 0:00:11]} e6 {[%emt 0:00:15]} 3. Nc3 {[%emt 0:00:08]} Nc6 {[%emt 0:00:37]} 4. Nf3 {[%emt 0:00:08]} Nf6 {[%emt 0:01:06]} 5. Bb3 {[%emt 0:01:08]} Be7 {[%emt 0:01:16]} 6. O-O {[%emt 0:00:12]} O-O {[%emt 0:01:00]} 7. d3 {[%emt 0:00:09]} d6 {[%emt 0:02:20]} 8. Bg5 {[%emt 0:00:22]} h6 {[%emt 0:00:17]} 9. Bh4 {[%emt 0:00:08]} a6 {[%emt 0:00:32]} 10. a3 {[%emt 0:00:17]} b5 {[%emt 0:01:01]} 11. Qd2 {[%emt 0:00:23]} Nd4 {[%emt 0:02:21]} 12. Nxd4 {[%emt 0:00:10]} cxd4 {[%emt 0:00:11]} 13. Ne2 {[%emt 0:00:11]} e5 {[%emt 0:01:02]} 14. c3 {[%emt 0:00:19]} dxc3 {[%emt 0:00:20]} 15. Nxc3 {[%emt 0:00:24]} Bb7 {[%emt 0:01:35]} 16. Rac1 {[%emt 0:00:20]} Qd7 {[%emt 0:00:49]} 17. h3 {[%emt 0:00:32]} Nxe4 {[%emt 0:01:14]} 18. Nxe4 {[%emt 0:00:35]} Bxh4 {[%emt 0:00:39]} 19. Rc2 {[%emt 0:00:34]} d5 {[%emt 0:00:52]} 20. Nc5 {[%emt 0:00:17]} Qe7 {[%emt 0:00:37]} 21. Nxb7 {[%emt 0:00:23]} Qxb7 {[%emt 0:00:12]} 22. Rc5 {[%emt 0:01:26]} Rad8 {[%emt 0:00:55]} 23. Qe2 {[%emt 0:01:13]} Be7 {[%emt 0:02:29]} 24. Rc2 {[%emt 0:00:30]} e4 {[%emt 0:00:57]} 25. dxe4 {[%emt 0:00:23]} dxe4 {[%emt 0:00:12]} 26. Re1 {[%emt 0:00:56]} Bd6 {[%emt 0:05:30]} 27. Qxe4 {[%emt 0:00:50]} Qxe4 {[%emt 0:00:11]} 28. Rxe4 {[%emt 0:00:17]} Rfe8 {[%emt 0:00:15]} 29. Rxe8+ {[%emt 0:00:20]} Rxe8 {[%emt 0:00:06]} 30. Rc1 {[%emt 0:00:17]} a5 {[%emt 0:01:08]} 31. a4 {[%emt 0:00:23]} b4 {[%emt 0:00:51]} 32. Bc4 {[%emt 0:00:26]} Bf4 {[%emt 0:01:56]} 33. Rd1 {[%emt 0:00:32]} Bc7 {[%emt 0:00:48]} 34. b3 {[%emt 0:00:12]} Re4 {[%emt 0:01:19]} 35. f3 {[%emt 0:00:33]} Re3 {[%emt 0:00:55]} 36. Rd3 {[%emt 0:02:53]} Rxd3 {[%emt 0:03:13]} 37. Bxd3 {[%emt 0:00:19]} g5 {[%emt 0:00:42]} 38. g4 {[%emt 0:00:22]} Kg7 {[%emt 0:01:20]} 39. Kf2 {[%emt 0:00:55]} Kf6 {[%emt 0:00:00]} 40. Kg2 {[%emt 0:00:38]} Ke5 {[%emt 0:00:16]} 41. Bc4 {[%emt 0:00:20]} 1/2-1/2

[Event "DVM U10 2024"]
[Site "Duesseldorf"]
[Date "2024.12.28"]
[Round "4"]
[White "Städler, Jannis"]
[Black "Gheng, Hannes Lucas"]
[Result "0-1"]
[ECO "B40"]
[WhiteElo "1082"]
[BlackElo "1482"]
[Annotator "NA"]
[PlyCount "56"]
[EventDate "2024.12.23"]
[EventType "team-tourn"]
[EventRounds "7"]
[EventCountry "GER"]
[SourceTitle "playchess.com"]
[Source "ChessBase"]
[SourceQuality "1"]
[TimeControl "3300+5"]

1. e4 {[%emt 0:00:02]} c5 {[%emt 0:00:05]} 2. Bc4 {[%emt 0:00:09]} e6 {[%emt 0:00:07]} 3. Nf3 {[%emt 0:00:42]} d5 {[%emt 0:00:41]} 4. exd5 {[%emt 0:00:11]} exd5 {[%emt 0:00:05]} 5. Bb5+ {[%emt 0:00:12]} Nd7 {[%emt 0:00:10]} 6. O-O {[%emt 0:00:18]} Be7 {[%emt 0:00:08]} 7. Re1 {[%emt 0:00:24]} a6 {[%emt 0:00:33]} 8. Bxd7+ {[%emt 0:00:14]} Bxd7 {[%emt 0:00:08]} 9. Nc3 {[%emt 0:00:07]} Nf6 {[%emt 0:00:25]} 10. d3 {[%emt 0:00:38]} O-O {[%emt 0:00:11]} 11. Bg5 {[%emt 0:00:17]} d4 {[%emt 0:01:56]} 12. Ne4 {[%emt 0:00:54]} Re8 {[%emt 0:02:00]} 13. Bxf6 {[%emt 0:01:17]} Bxf6 {[%emt 0:00:15]} 14. Nxc5 {[%emt 0:00:11]} Bc6 {[%emt 0:01:02]} 15. Qd2 {[%emt 0:03:31]} Bxf3 {[%emt 0:05:03]} 16. gxf3 {[%emt 0:01:18]} Bh4 {[%emt 0:01:01]} 17. Rxe8+ {[%emt 0:01:00]} Qxe8 {[%emt 0:00:47]} 18. Re1 {[%emt 0:00:21]} Qc6 {[%emt 0:00:08]} 19. Ne4 {[%emt 0:01:08]} f5 {[%emt 0:02:25]} 20. Ng3 {[%emt 0:00:37]} Qxf3 {[%emt 0:08:34]} 21. Re2 {[%emt 0:00:22]} f4 {[%emt 0:02:07]} 22. Qe1 {[%emt 0:00:15]} Kf7 {[%emt 0:01:54]} 23. Ne4 {[%emt 0:04:42]} Qg4+ {[%emt 0:02:12]} 24. Kf1 {[%emt 0:00:51]} f3 {[%emt 0:00:39]} 25. Nd6+ {[%emt 0:00:19]} Kf6 {[%emt 0:00:10]} 26. Ne4+ {[%emt 0:00:28]} Kg6 {[%emt 0:00:14]} 27. Ng3 {[%emt 0:00:16]} Qh3+ {[%emt 0:00:06]} 28. Kg1 {[%emt 0:00:20]} Qg2# {[%emt 0:00:33]} 0-1